fUSD/lending_fUSD_20260515
["ID","MTS","AMOUNT","RATE_DAILY","PERIOD"]
[422316141,1778817042000,-1331.41,0.00026575,7]
[422316152,1778817042000,-314.0,0.000268,2]
[422316151,1778817042000,-1000.0,0.000268,2]
[422316162,1778817042000,-695.39793187,0.00027053,2]
[422316158,1778817042000,-1996.93,0.00026964,7]
[422316154,1778817042000,-1996.93,0.0002682,2]
[422316156,1778817042000,-558.0,0.00026894,2]
[422316157,1778817042000,-1224.98,0.000269,7]
[422316161,1778817042000,-217.15233878,0.00027051,2]
[422316155,1778817042000,-150.0,0.00026849,2]
[422316159,1778817042000,-1000.0,0.00027,2]
[422316160,1778817042000,-1504.42755463,0.00027026,2]
[422316163,1778817042000,-621.78829552,0.00027053,2]
[422316228,1778817043000,-1006.92,0.00027473,2]
[422316234,1778817043000,-1108.79636044,0.00027603,2]
[422316229,1778817043000,-1006.92,0.00027487,2]
[422316235,1778817043000,-280.03725112,0.00027603,2]
[422316231,1778817043000,-1006.92,0.000275,2]
[422316223,1778817043000,-1006.92,0.00027407,2]
[422316233,1778817043000,-200.0,0.00027603,2]
[422316232,1778817043000,-401.84,0.000275,2]
[422316224,1778817043000,-1006.92,0.0002742,2]
[422316222,1778817043000,-2900.42,0.000274,14]
[422316225,1778817043000,-1006.92,0.00027433,2]
[422316226,1778817043000,-1006.92,0.00027447,2]
[422316227,1778817043000,-1006.92,0.0002746,2]
[422316252,1778817043000,-678.99,0.00028,2]
[422316236,1778817043000,-260.4103811,0.00027603,2]
[422316238,1778817043000,-152.0,0.00027638,4]
[422316237,1778817043000,-150.0,0.0002761,2]
[422316242,1778817043000,-605.0,0.00027767,5]
[422316240,1778817043000,-11722.07,0.000277,2]
[422316241,1778817043000,-244.28611338,0.00027715,2]
[422316244,1778817043000,-180.37574427,0.00027918,2]
[422316246,1778817043000,-208.38824723,0.00028,30]
[422316243,1778817043000,-500.0,0.000278,7]
[422316250,1778817043000,-600.0,0.00028,2]
[422316248,1778817043000,-208.38824723,0.00028,10]
[422316221,1778817043000,-3223.66,0.000274,7]
[422316254,1778817043000,-678.99,0.00028,2]
[422316230,1778817043000,-519.58,0.00027497,7]
[422316220,1778817043000,-2619.13,0.000274,7]
[422316210,1778817043000,-1017.77,0.00027397,2]
[422316218,1778817043000,-207.92460459,0.00027397,2]
[422316189,1778817043000,-871.0,0.00027397,30]
[422316190,1778817043000,-987.85294539,0.00027397,2]
[422316191,1778817043000,-768.3309245,0.00027397,30]
[422316192,1778817043000,-152.241,0.00027397,30]
[422316194,1778817043000,-187.32,0.00027397,7]
[422316196,1778817043000,-1500.0,0.00027397,2]
[422316197,1778817043000,-1010.3,0.00027397,2]
[422316193,1778817043000,-1288.21900314,0.00027397,7]
[422316198,1778817043000,-2000.0,0.00027397,7]
[422316201,1778817043000,-2000.0,0.00027397,7]
[422316202,1778817043000,-2000.0,0.00027397,7]
[422316204,1778817043000,-1933.17065798,0.00027397,7]
[422316199,1778817043000,-2000.0,0.00027397,7]
[422316200,1778817043000,-2000.0,0.00027397,7]
[422316206,1778817043000,-685.95,0.00027397,2]
[422316207,1778817043000,-526.48,0.00027397,2]
[422316205,1778817043000,-151.19263811,0.00027397,2]
[422316258,1778817043000,-678.99,0.00028,2]
[422316209,1778817043000,-1465.15,0.00027397,2]
[422316211,1778817043000,-612.11,0.00027397,20]
[422316208,1778817043000,-300.0,0.00027397,2]
[422316214,1778817043000,-150.0,0.00027397,2]
[422316212,1778817043000,-150.0,0.00027397,2]
[422316213,1778817043000,-150.0,0.00027397,2]
[422316215,1778817043000,-150.0,0.00027397,2]
[422316216,1778817043000,-150.0,0.00027397,2]
[422316219,1778817043000,-1288.21900314,0.00027397,7]
[422316217,1778817043000,-150.0,0.00027397,2]
[422316257,1778817043000,-678.99,0.00028,2]
[422316239,1778817043000,-1224.98,0.000277,7]
[422316260,1778817043000,-460.1699087,0.00028008,2]
[422316288,1778817043000,-2000.0,0.0002843,2]
[422316291,1778817043000,-2000.0,0.0002843,2]
[422316295,1778817043000,-350.0,0.00028469,2]
[422316305,1778817043000,-150.0,0.00028493,60]
[422316294,1778817043000,-500.0,0.00028439,120]
[422316296,1778817043000,-350.0,0.00028469,2]
[422316297,1778817043000,-350.0,0.00028469,2]
[422316298,1778817043000,-350.0,0.00028469,2]
[422316299,1778817043000,-350.0,0.00028469,2]
[422316300,1778817043000,-453.0,0.00028469,2]
[422316301,1778817043000,-150.0,0.00028493,60]
[422316303,1778817043000,-150.0,0.00028493,60]
[422316302,1778817043000,-150.0,0.00028493,60]
[422316289,1778817043000,-2000.0,0.0002843,2]
[422316304,1778817043000,-150.0,0.00028493,60]
[422316310,1778817043000,-163.69546163,0.00028493,60]
[422316311,1778817043000,-500.0,0.00028493,2]
[422316313,1778817043000,-500.0,0.00028493,2]
[422316309,1778817043000,-150.0,0.00028493,60]
[422316306,1778817043000,-150.0,0.00028493,60]
[422316312,1778817043000,-500.0,0.00028493,2]
[422316314,1778817043000,-500.0,0.00028493,2]
[422316308,1778817043000,-150.0,0.00028493,60]
[422316259,1778817043000,-678.99,0.00028,2]
[422316315,1778817043000,-500.0,0.00028493,2]
[422316318,1778817043000,-1029.39030039,0.00028497,30]
[422316317,1778817043000,-150.0,0.00028493,2]
[422316319,1778817043000,-1224.98,0.000285,7]
[422316307,1778817043000,-150.0,0.00028493,60]
[422316285,1778817043000,-1270.0,0.00028423,2]
[422316316,1778817043000,-501.6174179,0.00028493,2]
[422316286,1778817043000,-150.0,0.00028423,2]
[422316287,1778817043000,-930.0,0.00028423,2]
[422316256,1778817043000,-678.99,0.00028,2]
[422316264,1778817043000,-1149.82182577,0.00028151,2]
[422316261,1778817043000,-2900.42,0.000281,14]
[422316267,1778817043000,-150.0,0.00028192,2]
[422316266,1778817043000,-270.0455652,0.00028151,2]
[422316265,1778817043000,-290.39862941,0.00028151,2]
[422316278,1778817043000,-605.0,0.00028329,6]
[422316268,1778817043000,-795.70767995,0.00028204,2]
[422316280,1778817043000,-3223.66,0.000284,7]
[422316279,1778817043000,-195.89,0.00028353,7]
[422316269,1778817043000,-452.0,0.00028219,120]
[422316277,1778817043000,-768.3309245,0.00028311,30]
[422316263,1778817043000,-200.0,0.00028151,2]
[422316272,1778817043000,-317.0,0.00028226,120]
[422316281,1778817043000,-225.18697532,0.0002842,2]
[422316292,1778817043000,-2000.0,0.0002843,2]
[422316283,1778817043000,-625.0,0.00028423,2]
[422316284,1778817043000,-3542.0,0.00028423,2]
[422316282,1778817043000,-1354.0,0.00028423,2]
[422316274,1778817043000,-188.17728752,0.00028256,18]
[422316290,1778817043000,-2000.0,0.0002843,2]
[422316270,1778817043000,-181.65711183,0.00028223,30]
[422316275,1778817043000,-2258.3,0.00028267,2]
[422316271,1778817043000,-150.0,0.00028223,30]
[422316293,1778817043000,-2000.0,0.0002843,2]
[422316273,1778817043000,-222.0,0.00028228,120]
[422316276,1778817043000,-195.00828324,0.00028272,7]
[422316379,1778817044000,-500.0,0.00029845,15]
[422316363,1778817044000,-301.1433787,0.00029795,2]
[422316346,1778817044000,-500.0,0.0002951,120]
[422316367,1778817044000,-150.0,0.000298,2]
[422316369,1778817044000,-150.0,0.000298,2]
[422316361,1778817044000,-644.79446246,0.00029792,2]
[422316373,1778817044000,-563.9,0.00029812,7]
[422316371,1778817044000,-150.0,0.000298,2]
[422316389,1778817044000,-200.0,0.0003,2]
[422316350,1778817044000,-500.0,0.00029626,2]
[422316365,1778817044000,-2900.42,0.000298,14]
[422316383,1778817044000,-563.9,0.00029962,7]
[422316378,1778817044000,-379.6,0.00029845,15]
[422316375,1778817044000,-966.68,0.00029812,7]
[422316377,1778817044000,-150.0,0.00029819,2]
[422316386,1778817044000,-366.95497307,0.0003,30]
[422316388,1778817044000,-97.4857263,0.0003,120]
[422316384,1778817044000,-350.0,0.00029978,7]
[422316395,1778817044000,-200.0,0.0003,2]
[422316392,1778817044000,-650.0,0.0003,2]
[422316393,1778817044000,-200.0,0.0003,2]
[422316348,1778817044000,-150.0,0.00029601,2]
[422316391,1778817044000,-200.0,0.0003,2]
[422316381,1778817044000,-356.19,0.00029905,120]
[422316359,1778817044000,-721.12765535,0.00029792,2]
[422316342,1778817044000,-2619.13,0.000295,7]
[422316355,1778817044000,-152.0,0.00029785,5]
[422316390,1778817044000,-1000.0,0.0003,7]
[422316328,1778817044000,-2900.42,0.000289,14]
[422316329,1778817044000,-512.77554527,0.00029019,2]
[422316327,1778817044000,-605.0,0.0002889,6]
[422316321,1778817044000,-200.0,0.00028699,2]
[422316326,1778817044000,-654.85213685,0.00028767,120]
[422316324,1778817044000,-280.03725112,0.00028699,2]
[422316322,1778817044000,-1192.36523333,0.00028699,2]
[422316323,1778817044000,-301.1433787,0.00028699,2]
[422316320,1778817044000,-159.0,0.00028641,3]
[422316325,1778817044000,-1106.25305605,0.00028761,3]
[422316357,1778817044000,-233.51889341,0.00029789,2]
[422316331,1778817044000,-10920.6,0.000291,2]
[422316332,1778817044000,-11722.07,0.000291,2]
[422316333,1778817044000,-768.3309245,0.00029224,30]
[422316334,1778817044000,-290.39862941,0.00029247,2]
[422316336,1778817044000,-156.62,0.00029414,2]
[422316337,1778817044000,-1833.0,0.00029445,2]
[422316335,1778817044000,-5000.0,0.0002925,120]
[422316340,1778817044000,-399.0,0.00029457,2]
[422316338,1778817044000,-605.0,0.00029452,7]
[422316344,1778817044000,-1224.98,0.000295,7]
[422316352,1778817044000,-222.0,0.00029639,120]
[422316354,1778817044000,-159.0,0.00029656,3]
[422316330,1778817044000,-3469.31,0.000291,2]
[422316394,1778817044000,-200.0,0.0003,2]
[422316380,1778817044000,-3223.66,0.000299,7]
[422316398,1778817044000,-605.0,0.00030014,7]
[422316450,1778817044000,-358.0,0.00030529,30]
[422316464,1778817044000,-159.0,0.00030572,120]
[422316466,1778817044000,-605.0,0.00030575,8]
[422316471,1778817044000,-398.0,0.00030599,2]
[422316468,1778817044000,-500.0,0.0003058,120]
[422316473,1778817044000,-2619.13,0.000306,7]
[422316475,1778817044000,-200.0,0.00030603,2]
[422316477,1778817044000,-200.0,0.00030603,2]
[422316486,1778817044000,-1577.394331,0.0003065,2]
[422316480,1778817044000,-200.0,0.00030603,2]
[422316482,1778817044000,-200.0,0.00030603,2]
[422316445,1778817044000,-2931.0,0.00030529,30]
[422316489,1778817044000,-1577.394331,0.0003065,2]
[422316497,1778817044000,-275.85529907,0.00030719,7]
[422316503,1778817044000,-200.0,0.00030751,2]
[422316501,1778817044000,-398.0,0.00030744,2]
[422316491,1778817044000,-159.0,0.00030672,3]
[422316506,1778817044000,-398.0,0.0003076,2]
[422316499,1778817044000,-275.85529907,0.00030719,30]
[422316495,1778817044000,-151.01809,0.0003069,10]
[422316510,1778817044000,-2566.37682139,0.00030849,2]
[422316512,1778817044000,-398.0,0.00030859,2]
[422316508,1778817044000,-2566.37682139,0.0003083,2]
[422316400,1778817044000,-350.0,0.00030072,3]
[422316493,1778817044000,-161.0,0.00030686,120]
[422316462,1778817044000,-160.0,0.00030538,120]
[422316484,1778817044000,-1577.39433103,0.0003065,2]
[422316461,1778817044000,-397.0,0.00030529,30]
[422316448,1778817044000,-3787.0,0.00030529,30]
[422316404,1778817044000,-685.95,0.00030137,2]
[422316402,1778817044000,-2354.0,0.000301,120]
[422316411,1778817044000,-244.28611338,0.0003015,2]
[422316413,1778817044000,-2258.3,0.00030239,2]
[422316407,1778817044000,-200.0,0.00030137,2]
[422316409,1778817044000,-4910.5309245,0.00030137,30]
[422316415,1778817044000,-200.0,0.000303,2]
[422316417,1778817044000,-200.0,0.000303,2]
[422316513,1778817044000,-398.0,0.00030891,2]
[422316422,1778817044000,-200.0,0.000303,2]
[422316426,1778817044000,-398.0,0.00030376,2]
[422316424,1778817044000,-376.0,0.00030322,2]
[422316420,1778817044000,-200.0,0.000303,2]
[422316428,1778817044000,-398.0,0.00030395,2]
[422316458,1778817044000,-273.0,0.00030529,30]
[422316456,1778817044000,-430.0,0.00030529,30]
[422316452,1778817044000,-258.0,0.00030529,30]
[422316454,1778817044000,-398.0,0.00030529,2]
[422316441,1778817044000,-249.0,0.00030529,30]
[422316443,1778817044000,-584.0,0.00030529,30]
[422316437,1778817044000,-173.73,0.00030411,120]
[422316435,1778817044000,-1224.98,0.000304,7]
[422316433,1778817044000,-2900.42,0.000304,14]
[422316431,1778817044000,-398.0,0.00030397,2]
[422316439,1778817044000,-649.0,0.00030529,30]
[422316562,1778817045000,-2566.37682139,0.00031198,2]
[422316565,1778817045000,-200.0,0.00031218,2]
[422316554,1778817045000,-150.0,0.00031081,2]
[422316555,1778817045000,-200.0,0.00031096,2]
[422316556,1778817045000,-217.0,0.00031096,2]
[422316564,1778817045000,-200.0,0.00031218,2]
[422316563,1778817045000,-1224.98,0.000312,7]
[422316550,1778817045000,-1000.0,0.00031058,2]
[422316548,1778817045000,-1000.0,0.00031058,2]
[422316547,1778817045000,-7424.12821403,0.0003105,30]
[422316560,1778817045000,-605.0,0.00031137,9]
[422316566,1778817045000,-2566.37682139,0.00031287,2]
[422316558,1778817045000,-222.0,0.00031121,120]
[422316579,1778817045000,-2566.37682139,0.00031431,2]
[422316559,1778817045000,-795.70767995,0.00031128,2]
[422316557,1778817045000,-300.0,0.000311,10]
[422316576,1778817045000,-3542.0,0.00031423,2]
[422316572,1778817045000,-152.1,0.00031354,30]
[422316569,1778817045000,-2566.37682139,0.00031347,2]
[422316573,1778817045000,-2566.37682139,0.00031419,2]
[422316571,1778817045000,-152.11,0.00031354,30]
[422316568,1778817045000,-2566.37682139,0.00031344,2]
[422316578,1778817045000,-930.0,0.00031423,2]
[422316570,1778817045000,-152.11,0.00031354,30]
[422316567,1778817045000,-2566.37682139,0.00031305,2]
[422316552,1778817045000,-1000.0,0.00031058,2]
[422316561,1778817045000,-164.22177197,0.00031158,2]
[422316551,1778817045000,-1000.0,0.00031058,2]
[422316524,1778817045000,-2566.37682139,0.00030966,2]
[422316553,1778817045000,-2566.37682139,0.00031073,2]
[422316515,1778817045000,-200.0,0.00030909,2]
[422316521,1778817045000,-567.96728359,0.00030952,2]
[422316574,1778817045000,-1354.0,0.00031423,2]
[422316528,1778817045000,-399.0,0.00030983,2]
[422316514,1778817045000,-3223.66,0.000309,7]
[422316519,1778817045000,-200.0,0.00030909,2]
[422316526,1778817045000,-2566.37682139,0.00030982,2]
[422316529,1778817045000,-150.00000002,0.00030999,2]
[422316517,1778817045000,-200.0,0.00030909,2]
[422316522,1778817045000,-398.0,0.00030961,2]
[422316530,1778817045000,-76.85878765,0.00031,2]
[422316539,1778817045000,-151.01809,0.00031,14]
[422316531,1778817045000,-158.0,0.00031,120]
[422316540,1778817045000,-2566.37682139,0.00031016,2]
[422316541,1778817045000,-1000.0,0.0003102,2]
[422316538,1778817045000,-151.01809,0.00031,14]
[422316532,1778817045000,-150.0,0.00031,2]
[422316534,1778817045000,-208.38824723,0.00031,120]
[422316533,1778817045000,-2900.42,0.00031,14]
[422316535,1778817045000,-200.0,0.00031,10]
[422316537,1778817045000,-151.01809,0.00031,14]
[422316536,1778817045000,-151.01808,0.00031,14]
[422316542,1778817045000,-1000.0,0.0003102,2]
[422316544,1778817045000,-150.38032802,0.00031021,2]
[422316545,1778817045000,-2566.37682139,0.00031027,2]
[422316543,1778817045000,-1847.41533141,0.0003102,2]
[422316546,1778817045000,-180.27312146,0.00031034,2]
[422316549,1778817045000,-1000.0,0.00031058,2]
[422316577,1778817045000,-1270.0,0.00031423,2]
[422316580,1778817045000,-200.46090113,0.000315,2]
[422316581,1778817045000,-150.0,0.000315,2]
[422316611,1778817045000,-152.11,0.00031902,30]
[422316609,1778817045000,-2566.37682139,0.00031861,2]
[422316613,1778817045000,-152.1,0.00031902,30]
[422316615,1778817045000,-2566.37682139,0.00031944,2]
[422316619,1778817045000,-179.58787957,0.00032,120]
[422316617,1778817045000,-183.18370859,0.00032,120]
[422316618,1778817045000,-172.47882652,0.00032,120]
[422316620,1778817045000,-182.48058355,0.00032,120]
[422316621,1778817045000,-1365.71913622,0.00032,120]
[422316622,1778817045000,-170.62507081,0.00032,120]
[422316624,1778817045000,-215.11892384,0.00032,120]
[422316627,1778817045000,-177.47449092,0.00032,120]
[422316626,1778817045000,-1760.2559293,0.00032,2]
[422316625,1778817045000,-222.07622707,0.00032,120]
[422316623,1778817045000,-1460.42276489,0.00032,120]
[422316639,1778817045000,-2566.37682139,0.00032179,2]
[422316629,1778817045000,-2619.13,0.00032,7]
[422316628,1778817045000,-400.0,0.00032,120]
[422316630,1778817045000,-2347.91844182,0.00032,120]
[422316631,1778817045000,-158.0,0.00032,120]
[422316633,1778817045000,-700.0,0.00032,2]
[422316575,1778817045000,-625.0,0.00031423,2]
[422316635,1778817045000,-2566.37682139,0.00032052,2]
[422316634,1778817045000,-2566.37682139,0.00032017,2]
[422316638,1778817045000,-2566.37682139,0.00032131,2]
[422316636,1778817045000,-200.0,0.00032055,2]
[422316637,1778817045000,-199.29,0.00032066,120]
[422316612,1778817045000,-152.11,0.00031902,30]
[422316607,1778817045000,-2566.37682139,0.00031851,2]
[422316632,1778817045000,-1224.98,0.00032,7]
[422316606,1778817045000,-2566.37682139,0.00031756,2]
[422316616,1778817045000,-5268.52081579,0.00031963,30]
[422316591,1778817045000,-258.0,0.00031529,30]
[422316592,1778817045000,-195.89,0.00031529,7]
[422316583,1778817045000,-1000.0,0.00031507,40]
[422316584,1778817045000,-152.0,0.00031524,12]
[422316589,1778817045000,-3787.0,0.00031529,30]
[422316586,1778817045000,-249.0,0.00031529,30]
[422316585,1778817045000,-649.0,0.00031529,30]
[422316588,1778817045000,-2931.0,0.00031529,30]
[422316587,1778817045000,-584.0,0.00031529,30]
[422316590,1778817045000,-358.0,0.00031529,30]
[422316593,1778817045000,-430.0,0.00031529,30]
[422316597,1778817045000,-2900.42,0.000316,14]
[422316582,1778817045000,-1000.0,0.000315,7]
[422316595,1778817045000,-397.0,0.00031529,30]
[422316596,1778817045000,-2566.37682139,0.0003156,2]
[422316614,1778817045000,-152.0,0.00031933,6]
[422316610,1778817045000,-2566.37682139,0.00031889,2]
[422316601,1778817045000,-275.85529907,0.00031656,30]
[422316603,1778817045000,-605.0,0.00031699,9]
[422316608,1778817045000,-2566.37682139,0.00031859,2]
[422316600,1778817045000,-275.85529907,0.00031656,7]
[422316598,1778817045000,-500.0,0.0003165,120]
[422316599,1778817045000,-1504.42755463,0.00031651,2]
[422316604,1778817045000,-3223.66,0.000317,7]
[422316605,1778817045000,-2338.45866313,0.00031704,2]
[422316594,1778817045000,-273.0,0.00031529,30]
[422316602,1778817045000,-159.0,0.00031687,3]
[422316669,1778817046000,-747.8093786,0.00032531,2]
[422316667,1778817046000,-273.0,0.00032529,30]
[422316671,1778817046000,-350.0,0.00032583,4]
[422316677,1778817046000,-2566.37682139,0.00032642,2]
[422316668,1778817046000,-397.0,0.00032529,30]
[422316672,1778817046000,-244.28611338,0.00032586,2]
[422316675,1778817046000,-2566.37682139,0.00032594,2]
[422316676,1778817046000,-150.0,0.00032636,2]
[422316673,1778817046000,-275.85529907,0.00032592,7]
[422316670,1778817046000,-668.65185757,0.00032531,2]
[422316680,1778817046000,-9243.86,0.000327,2]
[422316679,1778817046000,-222.0,0.00032677,120]
[422316678,1778817046000,-2566.37682139,0.00032649,2]
[422316682,1778817046000,-3469.31,0.000327,2]
[422316681,1778817046000,-8102.68,0.000327,2]
[422316684,1778817046000,-10920.6,0.000327,2]
[422316683,1778817046000,-3223.66,0.000327,7]
[422316686,1778817046000,-159.0,0.00032703,3]
[422316689,1778817046000,-4909.25193428,0.000328,2]
[422316685,1778817046000,-11722.07,0.000327,2]
[422316666,1778817046000,-430.0,0.00032529,30]
[422316674,1778817046000,-275.85529907,0.00032592,30]
[422316660,1778817046000,-249.0,0.00032529,30]
[422316649,1778817046000,-2566.37682139,0.00032284,2]
[422316663,1778817046000,-3787.0,0.00032529,30]
[422316641,1778817046000,-2900.42,0.000322,14]
[422316652,1778817046000,-152.0,0.00032342,13]
[422316691,1778817046000,-250.0,0.00032846,7]
[422316640,1778817046000,-2566.37682139,0.00032193,2]
[422316644,1778817046000,-2258.3,0.0003221,5]
[422316645,1778817046000,-2566.37682139,0.00032214,2]
[422316650,1778817046000,-193.09870935,0.00032292,60]
[422316642,1778817046000,-2566.37682139,0.00032202,2]
[422316643,1778817046000,-259.411,0.00032204,2]
[422316647,1778817046000,-2566.37682139,0.00032225,2]
[422316646,1778817046000,-366.95497307,0.00032222,30]
[422316648,1778817046000,-605.0,0.0003226,10]
[422316654,1778817046000,-2566.37682139,0.00032443,2]
[422316664,1778817046000,-358.0,0.00032529,30]
[422316665,1778817046000,-258.0,0.00032529,30]
[422316661,1778817046000,-584.0,0.00032529,30]
[422316657,1778817046000,-152.1,0.00032449,30]
[422316653,1778817046000,-2566.37682139,0.00032385,2]
[422316658,1778817046000,-697.31,0.00032524,30]
[422316662,1778817046000,-2931.0,0.00032529,30]
[422316655,1778817046000,-152.11,0.00032449,30]
[422316659,1778817046000,-649.0,0.00032529,30]
[422316688,1778817046000,-10276.0848,0.00032777,2]
[422316651,1778817046000,-908.44583239,0.000323,2]
[422316687,1778817046000,-500.0,0.0003272,120]
[422316719,1778817046000,-150.0,0.00032877,30]
[422316720,1778817046000,-150.0,0.00032877,30]
[422316722,1778817046000,-271.0,0.00032877,30]
[422316721,1778817046000,-150.0,0.00032877,30]
[422316723,1778817046000,-300.57,0.00032877,26]
[422316724,1778817046000,-500.0,0.00032877,2]
[422316726,1778817046000,-167.11165224,0.00032877,2]
[422316730,1778817046000,-500.0,0.00032877,2]
[422316725,1778817046000,-500.0,0.00032877,2]
[422316729,1778817046000,-500.0,0.00032877,2]
[422316717,1778817046000,-150.0,0.00032877,30]
[422316728,1778817046000,-500.0,0.00032877,2]
[422316731,1778817046000,-414.54634519,0.00032877,2]
[422316732,1778817046000,-911.92754488,0.00032877,60]
[422316735,1778817046000,-12946.19767073,0.000329,120]
[422316734,1778817046000,-290.13,0.000329,120]
[422316733,1778817046000,-7007.78831488,0.00032877,30]
[422316738,1778817046000,-512.77554527,0.00032969,2]
[422316737,1778817046000,-2619.13,0.000329,30]
[422316736,1778817046000,-152.69857013,0.000329,120]
[422316739,1778817046000,-2824.69477737,0.00032984,7]
[422316690,1778817046000,-605.0,0.00032822,10]
[422316727,1778817046000,-500.0,0.00032877,2]
[422316716,1778817046000,-150.0,0.00032877,30]
[422316656,1778817046000,-152.11,0.00032449,30]
[422316715,1778817046000,-150.0,0.00032877,30]
[422316718,1778817046000,-150.0,0.00032877,30]
[422316693,1778817046000,-300.0,0.0003287,120]
[422316694,1778817046000,-404.27243303,0.0003287,120]
[422316697,1778817046000,-685.95,0.00032877,2]
[422316699,1778817046000,-500.0,0.00032877,30]
[422316696,1778817046000,-349.99,0.00032877,2]
[422316700,1778817046000,-500.0,0.00032877,30]
[422316695,1778817046000,-1002.05,0.00032877,2]
[422316698,1778817046000,-856.0,0.00032877,120]
[422316703,1778817046000,-150.0,0.00032877,30]
[422316705,1778817046000,-150.0,0.00032877,30]
[422316701,1778817046000,-500.0,0.00032877,30]
[422316709,1778817046000,-150.0,0.00032877,30]
[422316702,1778817046000,-518.0,0.00032877,30]
[422316713,1778817046000,-150.0,0.00032877,30]
[422316711,1778817046000,-150.0,0.00032877,30]
[422316712,1778817046000,-150.0,0.00032877,30]
[422316710,1778817046000,-150.0,0.00032877,30]
[422316714,1778817046000,-150.0,0.00032877,30]
[422316708,1778817046000,-150.0,0.00032877,30]
[422316692,1778817046000,-250.0,0.00032846,7]
[422316707,1778817046000,-150.0,0.00032877,30]
[422316706,1778817046000,-150.0,0.00032877,30]
[422316704,1778817046000,-150.0,0.00032877,30]
[422316758,1778817047000,-2347.91844182,0.00033,120]
[422316746,1778817047000,-1460.42276489,0.00033,120]
[422316754,1778817047000,-175.91106121,0.00033,60]
[422316753,1778817047000,-37974.02099631,0.00033,3]
[422316749,1778817047000,-46626.10418927,0.00033,5]
[422316750,1778817047000,-52153.78750436,0.00033,2]
[422316748,1778817047000,-222.07622707,0.00033,120]
[422316742,1778817047000,-179.58787957,0.00033,120]
[422316751,1778817047000,-601.02425971,0.00033,7]
[422316745,1778817047000,-170.62507081,0.00033,120]
[422316744,1778817047000,-1365.71913622,0.00033,120]
[422316743,1778817047000,-182.48058355,0.00033,120]
[422316741,1778817047000,-172.47882652,0.00033,120]
[422316740,1778817047000,-183.18370859,0.00033,120]
[422316757,1778817047000,-571.463836,0.00033,14]
[422316747,1778817047000,-215.11892384,0.00033,120]
[422316752,1778817047000,-5193.78899513,0.00033,2]
[422316761,1778817047000,-350.0,0.00033014,5]
[422316755,1778817047000,-477.59411947,0.00033,30]
[422316756,1778817047000,-8710.72041311,0.00033,2]
[422316777,1778817047000,-1231.60374577,0.000335,2]
[422316776,1778817047000,-40416.0,0.00033394,30]
[422316774,1778817047000,-199.29,0.00033299,120]
[422316775,1778817047000,-605.0,0.00033384,11]
[422316773,1778817047000,-1163.87333491,0.00033197,30]
[422316771,1778817047000,-892.18335078,0.00033197,30]
[422316772,1778817047000,-2338.1,0.00033197,30]
[422316778,1778817047000,-1977.08973885,0.000335,30]
[422316770,1778817047000,-36021.84331431,0.00033197,30]
[422316766,1778817047000,-179.48,0.00033182,4]
[422316768,1778817047000,-179.49,0.00033182,4]
[422316762,1778817047000,-500.0,0.00033154,2]
[422316763,1778817047000,-152.0,0.0003316,14]
[422316760,1778817047000,-2900.42,0.00033,14]
[422316759,1778817047000,-158.0,0.00033,120]
[422316769,1778817047000,-353.54145072,0.00033197,6]